bitfinex-derivatives/quotes_ETHF0:USTF0_20250911
["timestamp","ask_amount","ask_price","bid_price","bid_amount"]
[1757594537653,1.5226,4418.9,4417.6,1.4831]
[1757594537847,0.22633,4418.8,4417.6,1.4831]
[1757594538046,1.5226,4418.9,4417.6,1.4831]
[1757594538457,0.415,4418.8,4417.6,1.4831]
[1757594538653,1.5226,4420.1,4417.8,1.4831]
[1757594538853,1.5226,4420.6,4418.8,1.4831]
[1757594539046,1.5226,4420.6,4419.1,1.4831]
[1757594539250,1.5226,4420.6,4419.3,1.4831]
[1757594539650,1.5226,4420.6,4419.3,0.415]
[1757594539951,1.5226,4420.6,4419.5,0.6047]
[1757594540255,1.5226,4420.4,4419.0,1.62526709]
[1757594540456,1.5226,4420.4,4418.0,1.62526709]
[1757594540457,0.5400865,4420.3,4418.0,1.62526709]
[1757594540648,1.5226,4418.9,4417.4,1.62526709]
[1757594540850,1.9366,4418.9,4417.4,1.62526709]
[1757594541151,0.414,4418.9,4417.3,3.52236709]
[1757594541353,1.5226,4418.8,4417.3,1.4831]
[1757594541656,1.9366,4418.8,4417.3,1.4831]
[1757594542447,1.5226,4418.8,4417.3,1.4831]
[1757594542652,0.6245,4418.5,4417.3,1.4831]
[1757594542853,1.5226,4418.4,4417.3,1.4831]
[1757594544769,1.5226,4418.4,4417.5,2.0878]
[1757594545261,1.5226,4418.4,4417.6,1.4831]
[1757594546664,1.5226,4418.4,4417.2,2.03826709]
[1757594546961,1.5226,4418.4,4417.3,1.4831]
[1757594547562,0.413,4418.8,4417.3,1.4831]
[1757594547765,1.4524,4418.7,4417.3,1.4831]
[1757594547963,1.4524,4418.7,4416.8,3.20246709]
[1757594548264,0.6269,4418.5,4416.8,1.5772]
[1757594548557,1.4524,4418.4,4416.8,1.5772]
[1757594548758,0.6245,4419.5,4416.5,2.64196709]
[1757594548759,0.6269,4419.5,4417.0,2.1991]
[1757594548982,1.99234747,4419.4,4417.4,1.5772]
[1757594549151,1.4524,4419.2,4417.4,1.5772]
[1757594549356,1.4524,4418.9,4417.4,1.5772]
[1757594550252,0.6269,4419.0,4417.4,1.5772]
[1757594550253,1.4524,4418.7,4417.4,1.5772]
[1757594550565,1.8644,4418.7,4417.6,1.5772]
[1757594550866,1.8644,4418.7,4417.0,2.1991]
[1757594551062,1.4524,4418.4,4417.0,2.1991]
[1757594551259,1.4524,4418.4,4417.1,1.9846]
[1757594551466,0.412,4418.7,4417.6,1.5772]
[1757594551864,1.4524,4418.6,4417.6,1.5772]
[1757594552057,1.4524,4418.6,4417.6,1.98455]
[1757594552258,0.412,4418.7,4417.6,1.5772]
[1757594552560,0.411,4418.9,4417.6,1.5772]
[1757594553973,1.8634,4419.1,4417.9,1.5772]
[1757594554268,1.8634,4419.1,4418.1,1.5772]
[1757594554664,1.4524,4418.9,4418.1,1.5772]
[1757594557459,1.4524,4418.9,4417.7,3.20246709]
[1757594557662,1.4524,4418.9,4417.8,1.5772]
[1757594557864,0.41,4418.9,4417.8,1.5772]
[1757594558065,0.41,4418.9,4418.2,1.5772]
[1757594558560,0.41,4418.9,4418.2,3.20246709]
[1757594558762,0.41,4418.9,4418.3,1.5772]
[1757594559069,1.8624,4418.9,4418.3,1.5772]
[1757594560360,1.4524,4418.9,4418.3,1.5772]
[1757594560563,1.4524,4418.9,4418.0,0.6219]
[1757594560564,1.4524,4418.9,4418.0,1.62526709]
[1757594560762,1.4524,4418.9,4417.6,3.20246709]
[1757594561164,1.4524,4418.7,4417.3,1.62526709]
[1757594561363,1.4524,4418.7,4416.3,2.82331284]
[1757594561364,2.0793,4418.5,4416.6,1.62526709]
[1757594561680,1.4524,4418.3,4416.5,1.62526709]
[1757594561867,0.6269,4418.0,4416.6,1.5772]
[1757594562166,1.8614,4417.9,4416.6,1.5772]
[1757594562870,1.4524,4417.7,4416.6,1.5772]
[1757594563071,0.409,4417.6,4416.6,1.5772]
[1757594563563,0.409,4417.5,4416.6,1.5772]
[1757594564070,0.408,4417.5,4416.6,1.5772]
[1757594564663,1.4524,4417.4,4416.6,1.5772]
[1757594565867,1.4524,4417.2,4416.0,1.62526709]
[1757594566072,1.4524,4417.2,4415.7,1.5772]
[1757594566277,2.0793,4417.0,4414.7,1.5772]
[1757594566466,2.0793,4417.0,4414.6,1.62526709]
[1757594566467,1.4524,4416.8,4414.6,1.5772]
[1757594566660,0.53906771,4416.7,4414.6,1.5772]
[1757594566969,0.6269,4417.0,4414.6,1.5772]
[1757594566970,1.4524,4416.4,4414.6,1.5772]
[1757594568368,1.67887,4416.4,4414.6,1.5772]
[1757594569270,1.4524,4416.4,4414.6,1.5772]
[1757594572376,1.4524,4416.4,4413.6,2.03379784]
[1757594572377,1.4524,4416.2,4413.6,1.5772]
[1757594572578,2.0793,4416.0,4413.0,2.1991]
[1757594572874,1.4524,4415.8,4413.0,2.1991]
[1757594573178,1.4524,4415.4,4413.0,1.5772]
[1757594573381,1.4524,4415.2,4413.0,1.5772]
[1757594573879,0.6269,4415.0,4413.0,1.5772]
[1757594574077,1.8584,4414.9,4412.8,0.1722243]
[1757594574286,0.6269,4415.0,4412.8,0.1722243]
[1757594574287,1.4524,4414.7,4412.8,0.1722243]
[1757594574478,0.6269,4414.5,4412.8,0.1722243]
[1757594574671,1.4524,4414.4,4412.8,0.1722243]
[1757594574872,1.67897,4414.4,4412.8,0.1722243]
[1757594575069,0.6269,4413.0,4412.8,0.1722243]
[1757594575273,1.8574,4412.9,4412.8,0.1722243]
[1757594575679,0.405,4412.9,4412.8,0.1722243]
[1757594575879,0.405,4412.9,4412.8,1.7494243]
[1757594576872,0.405,4413.5,4412.8,1.7494243]
[1757594577078,1.8574,4413.5,4412.8,1.7494243]
[1757594577278,2.455,4413.5,4412.8,0.1722243]
[1757594577480,2.05,4413.5,4412.8,0.1722243]
[1757594577680,0.405,4413.4,4412.8,1.6661243]
[1757594578685,0.405,4413.3,4412.9,1.4939]
[1757594578882,1.5398,4413.2,4412.8,0.1722243]
[1757594579179,1.9448,4413.3,4412.9,1.4939]
[1757594579383,1.5398,4413.2,4412.8,0.1722243]
[1757594579680,1.5398,4413.2,4412.9,1.4939]
[1757594579872,0.404,4413.1,4412.9,1.4939]
[1757594580070,0.5976,4413.5,4412.9,1.4939]
[1757594580275,1.5398,4413.3,4412.9,1.4939]
[1757594580684,1.9438,4413.4,4412.8,0.1722243]
[1757594581180,0.5976,4413.0,4412.8,0.1722243]
[1757594581380,1.5398,4412.9,4412.8,2.43e-05]
[1757594581583,5.76641,4412.9,4412.8,2.43e-05]
[1757594582382,6.17041,4412.9,4412.8,2.43e-05]
[1757594582575,1.5398,4412.9,4412.8,2.43e-05]
[1757594582782,1.9438,4412.9,4412.8,2.43e-05]
[1757594582977,0.403,4412.9,4412.8,1.4939243]
[1757594583379,0.403,4412.9,4412.8,2.43e-05]
[1757594584584,1.5398,4413.1,4412.8,2.43e-05]
[1757594584788,0.403,4413.0,4412.8,2.43e-05]
[1757594585383,1.5398,4412.9,4412.8,2.43e-05]
[1757594585785,1.5398,4413.4,4412.8,2.43e-05]
[1757594585974,0.403,4413.3,4412.8,2.43e-05]
[1757594586386,0.402,4413.2,4412.8,2.43e-05]
[1757594586578,1.5398,4414.4,4412.8,2.43e-05]
[1757594586778,0.5976,4415.0,4412.9,0.22658999]
[1757594586978,0.5976,4415.0,4412.8,2.43e-05]
[1757594586979,1.9418,4414.9,4413.1,1.4939]
[1757594588083,1.5398,4414.9,4413.1,1.4939]
[1757594588286,0.402,4414.8,4413.1,1.4939]
[1757594588486,1.5398,4414.7,4413.1,1.4939]
[1757594589193,34.1768,4415.2,4413.2,2.90811755]
[1757594589388,0.401,4415.5,4413.8,0.4077]
[1757594589678,0.401,4415.5,4413.7,1.4939]
[1757594589878,1.5398,4415.7,4413.8,1.9016]
[1757594590183,0.5976,4417.0,4415.1,1.4939]
[1757594590184,0.2263,4415.4,4415.1,1.4939]
[1757594591279,0.2263,4415.4,4415.0,0.6406]
[1757594591280,0.2263,4415.4,4414.5,0.6406]
[1757594591489,0.2263,4415.4,4414.1,1.4939]
[1757594591490,1.5398,4415.3,4414.1,1.4939]
[1757594593379,1.5398,4415.3,4413.0,0.6406]
[1757594593582,0.53450765,4415.2,4413.5,2.1345]
[1757594593784,0.2263,4415.4,4413.5,1.4939]
[1757594593785,1.5398,4414.9,4413.5,1.4939]
[1757594593988,1.5398,4414.7,4413.5,1.4939]
[1757594594179,0.53487048,4414.6,4412.9,1.4939]
[1757594594380,1.5398,4414.4,4412.9,1.4939]
[1757594594580,1.5398,4414.2,4412.8,2.43e-05]
[1757594594881,1.5398,4413.9,4412.8,2.43e-05]
[1757594595080,1.5398,4413.7,4412.8,2.43e-05]
[1757594595388,0.4,4413.6,4412.8,2.43e-05]
[1757594595982,1.5398,4413.5,4412.8,2.43e-05]
[1757594596179,2.1374,4413.5,4412.8,2.43e-05]
[1757594597088,1.5398,4413.3,4412.8,2.43e-05]
[1757594597486,0.5976,4413.0,4412.8,2.43e-05]
[1757594597780,0.9345153,4412.9,4412.8,2.43e-05]
[1757594598382,0.5355153,4412.9,4412.8,2.43e-05]
[1757594598582,0.9345153,4412.9,4412.8,2.43e-05]
[1757594599885,0.5355153,4412.9,4412.8,2.43e-05]
[1757594600093,0.9335153,4412.9,4412.8,2.43e-05]
[1757594600391,4.9335153,4412.9,4412.8,2.43e-05]
[1757594600599,0.5355153,4412.9,4412.8,2.43e-05]
[1757594600791,0.398,4412.9,4412.8,2.43e-05]
[1757594601986,0.5976,4413.5,4412.8,2.43e-05]
[1757594602187,0.93368653,4413.4,4412.8,2.43e-05]
[1757594602388,0.53568653,4413.3,4412.8,2.43e-05]
[1757594602590,0.397,4413.2,4412.8,2.43e-05]
[1757594604094,0.5976,4413.0,4412.8,2.43e-05]
[1757594604393,1.5398,4412.9,4412.8,2.43e-05]
[1757594605589,2.07568512,4412.9,4412.8,2.43e-05]
[1757594607795,4.53588512,4412.9,4412.8,2.43e-05]
[1757594609690,4.93088512,4412.9,4412.8,2.43e-05]
[1757594610692,0.93088512,4412.9,4412.8,2.43e-05]
[1757594611585,0.53588512,4412.9,4412.8,2.43e-05]
[1757594611895,0.5976,4414.0,4412.9,1.585]
[1757594611896,1.79648085,4414.0,4412.9,1.585]
[1757594612095,2.18272834,4414.5,4412.8,4.0000243]
[1757594612096,0.93061237,4413.9,4413.1,1.3586]
[1757594612397,0.395,4413.9,4413.1,1.3586]
[1757594612694,0.394,4413.8,4413.1,1.3586]
[1757594612896,0.394,4413.7,4413.1,1.3586]
[1757594613501,34.2355,4414.2,4413.1,1.3586]
[1757594613692,0.394,4414.1,4413.0,0.6081]
[1757594614298,0.394,4414.1,4413.1,1.585]
[1757594614793,0.394,4414.0,4413.1,1.585]
[1757594615599,0.394,4414.0,4413.1,0.885]
[1757594615993,0.393,4413.9,4413.1,0.885]
[1757594616901,1.6015,4413.8,4413.1,0.885]
[1757594617101,1.6015,4413.8,4412.8,2.43e-05]
[1757594617502,0.393,4413.7,4412.8,2.43e-05]
[1757594617899,0.393,4413.6,4412.8,2.43e-05]
[1757594618094,1.6015,4413.8,4412.8,2.43e-05]
[1757594618289,0.393,4413.7,4412.8,2.43e-05]
[1757594619796,1.6015,4413.6,4412.8,2.43e-05]
[1757594619996,0.6451,4414.0,4412.8,2.43e-05]
[1757594620194,1.6015,4414.1,4412.8,2.43e-05]
[1757594620596,0.6451,4414.0,4412.8,2.43e-05]
[1757594620797,1.6015,4413.9,4412.8,2.43e-05]
[1757594621294,0.392,4413.8,4412.8,2.43e-05]
[1757594621603,1.6015,4413.7,4412.8,2.43e-05]
[1757594623303,0.6451,4413.5,4412.8,2.43e-05]
[1757594623604,1.9925,4413.4,4412.8,2.43e-05]
[1757594624403,1.6015,4413.4,4412.8,2.43e-05]
[1757594624592,0.391,4413.3,4412.8,2.43e-05]
[1757594625605,1.6015,4413.4,4412.8,2.43e-05]
[1757594625806,0.391,4413.3,4412.8,2.43e-05]
[1757594626103,0.39,4413.4,4412.8,2.43e-05]
[1757594626310,1.6015,4413.7,4412.8,2.43e-05]
[1757594626800,1.6015,4413.7,4412.8,1.5850243]
[1757594627604,0.39,4413.8,4412.8,1.5850243]
[1757594627909,1.6015,4414.3,4412.8,1.5850243]
[1757594628297,0.389,4414.2,4412.8,1.5850243]
[1757594628604,0.6451,4415.5,4413.2,1.62526709]
[1757594628801,1.9905,4414.9,4413.4,1.585]
[1757594629003,1.9905,4414.9,4413.3,1.62526709]
[1757594629004,1.6015,4414.9,4413.6,1.585]
[1757594629206,0.389,4414.8,4413.6,1.585]
[1757594629707,1.6015,4414.7,4413.6,1.585]
[1757594631105,1.6015,4414.7,4412.9,1.585]
[1757594631306,1.6015,4414.7,4413.1,1.585]
[1757594631505,1.6015,4414.4,4413.1,1.585]
[1757594632202,0.22656,4414.3,4412.8,2.43e-05]
[1757594632402,2.52632951,4414.2,4412.8,2.43e-05]
[1757594632605,2.2466,4414.0,4412.8,2.43e-05]
[1757594633001,1.6015,4413.8,4412.8,2.43e-05]
[1757594634504,0.388,4413.7,4412.8,2.43e-05]
[1757594634704,1.6015,4413.4,4412.8,2.43e-05]
[1757594635711,0.387,4413.3,4412.8,2.43e-05]
[1757594636002,0.6451,4413.5,4412.8,2.43e-05]
[1757594636003,1.9885,4413.2,4412.8,2.43e-05]
[1757594636207,0.387,4413.1,4412.8,2.43e-05]
[1757594636410,0.387,4413.5,4412.8,4.0000243]
[1757594636606,0.387,4413.5,4413.1,1.585]
[1757594636906,1.6015,4413.9,4413.1,1.585]
[1757594637109,0.387,4413.8,4412.8,2.43e-05]
[1757594637308,1.5372,4413.7,4412.8,2.43e-05]
[1757594638403,0.54307697,4413.6,4412.8,2.43e-05]
[1757594638605,1.5372,4413.4,4412.8,2.43e-05]
[1757594639311,0.386,4413.3,4412.8,2.43e-05]
[1757594639513,1.5372,4413.2,4412.8,2.43e-05]
[1757594640014,1.5372,4414.4,4413.1,1.4522]
[1757594640208,0.386,4414.5,4413.1,1.4522]
[1757594640607,0.386,4414.5,4413.1,1.67876]
[1757594640608,1.9232,4414.5,4413.1,1.67876]
[1757594640806,1.9232,4414.5,4413.1,1.4522]
[1757594641113,2.5095,4414.5,4412.8,2.03382214]
[1757594641309,0.9723,4414.5,4412.9,2.03379784]
[1757594641514,1.5372,4414.4,4412.8,3.48602214]
[1757594641810,1.5372,4414.4,4412.8,1.4522243]
[1757594642112,1.5372,4414.4,4413.1,1.4522]
[1757594642612,0.385,4414.3,4413.3,1.4522]
[1757594642813,1.5372,4414.4,4413.3,1.4522]
[1757594643311,0.385,4414.6,4413.3,1.4522]
[1757594643613,1.9222,4414.6,4413.3,1.4522]
[1757594643813,1.5372,4414.4,4413.3,1.4522]
[1757594644308,0.5863,4415.5,4413.3,1.4522]
[1757594644516,1.5372,4416.4,4413.8,2.44148784]
[1757594644711,1.5372,4416.2,4414.1,2.03379784]
[1757594644911,0.5863,4416.0,4414.1,40.8]
[1757594645116,0.5439288,4415.9,4414.1,40.8]
[1757594645317,1.9212,4415.8,4414.2,1.4522]
[1757594646712,1.5372,4415.6,4414.2,1.4522]
[1757594646903,1.5372,4415.4,4413.6,2.03379784]
[1757594647108,1.5372,4415.4,4413.7,1.4522]
[1757594647302,1.5372,4415.4,4413.9,1.4522]
[1757594647523,1.5372,4415.4,4414.1,1.85987]
[1757594647813,0.5863,4416.0,4414.6,1.4522]
[1757594647814,1.5372,4416.0,4414.6,1.4522]
[1757594648513,0.383,4416.1,4414.7,1.4522]
[1757594649017,2.1235,4416.0,4414.7,1.4522]
[1757594649419,1.5372,4415.9,4414.2,2.03379784]
[1757594649611,1.5372,4415.9,4414.1,1.4522]
[1757594650909,1.5372,4415.9,4414.3,1.4522]
[1757594651218,1.5372,4415.9,4414.6,1.4522]
[1757594652019,1.9192,4415.9,4414.6,1.4522]
[1757594652318,0.382,4416.5,4415.2,1.4522]
[1757594652511,1.5372,4416.6,4415.2,1.4522]
[1757594652708,0.5863,4416.5,4415.3,41.181]
[1757594652909,1.5372,4416.6,4415.5,0.5648]
[1757594653109,1.5372,4416.6,4415.6,1.4522]
[1757594654217,0.5863,4417.5,4415.6,1.4522]
[1757594654218,1.5372,4417.2,4415.7,1.4522]
[1757594654418,1.9182,4417.2,4415.7,1.4522]
[1757594654618,1.9182,4417.2,4415.7,1.85972]
[1757594654912,1.5372,4417.2,4415.8,1.4522]
[1757594655118,1.5372,4417.7,4416.1,0.40749]
[1757594655318,1.5372,4417.7,4416.0,0.6072]
[1757594655319,1.5372,4417.7,4416.6,1.4522]
[1757594655520,32.63,4417.9,4416.6,1.4522]
[1757594656215,1.5372,4418.2,4416.6,1.4522]
[1757594656418,0.38,4418.7,4417.1,1.4522]
[1757594656614,0.38,4418.7,4417.3,1.4522]
[1757594656615,1.5372,4418.6,4417.3,1.4522]
[1757594657020,1.5372,4418.6,4417.3,1.67855]
[1757594657217,0.5863,4418.5,4417.3,1.4522]
[1757594657419,1.5372,4418.4,4417.4,0.38]
[1757594658224,1.5372,4418.4,4417.5,40.8]
[1757594658427,1.5372,4418.4,4417.3,1.4522]
[1757594658718,1.5372,4418.4,4417.2,0.379]
[1757594658924,1.5372,4418.4,4417.3,40.8]
[1757594659119,0.5863,4418.5,4417.3,40.8]
[1757594659422,1.5372,4417.4,4416.3,1.4522]
[1757594659627,1.5372,4417.4,4415.6,1.4522]
[1757594659812,1.5372,4417.4,4415.7,40.8]
[1757594660311,0.379,4417.3,4415.8,1.4522]
[1757594660717,0.379,4417.2,4415.8,1.4522]
[1757594661115,1.9162,4417.4,4415.8,1.4522]
[1757594661825,1.5372,4417.4,4415.8,1.4522]
[1757594662525,1.5372,4417.4,4415.9,0.378]
[1757594662723,1.5372,4417.4,4416.0,2.0586]
[1757594662919,1.5372,4417.4,4416.1,1.4522]
[1757594665224,1.5372,4417.4,4416.2,40.8]
[1757594665428,1.5372,4417.4,4416.3,1.4522]
[1757594665723,1.5372,4417.4,4416.3,1.8292]
[1757594666224,1.5372,4417.4,4416.4,1.4522]
[1757594666431,1.5372,4417.4,4416.6,1.4522]
[1757594667326,1.9142,4417.9,4416.6,1.4522]
[1757594667625,1.5372,4417.9,4416.6,1.4522]
[1757594668326,1.5372,4417.9,4416.7,1.4669]
[1757594668521,1.5372,4417.9,4416.9,1.4669]
[1757594668730,1.5372,4417.9,4417.1,1.4669]
[1757594669629,1.5372,4417.9,4416.5,0.6072]
[1757594669630,0.5863,4418.0,4416.5,2.0741]
[1757594669930,1.5009,4417.9,4417.0,2.0723]
[1757594670129,1.5009,4417.9,4417.1,1.4669]
[1757594670535,1.5009,4417.9,4416.6,1.4669]
[1757594670732,1.5009,4417.9,4416.7,0.375]
[1757594671027,1.5009,4417.9,4416.3,0.375]
[1757594671325,0.601,4416.5,4415.0,4.10789784]
[1757594671523,1.5009,4416.3,4415.0,1.4669]
[1757594671733,1.5009,4416.3,4415.2,1.4669]
[1757594672021,1.5009,4416.3,4415.3,1.4669]
[1757594672724,1.5009,4416.8,4415.3,1.4669]
[1757594673227,1.5009,4416.8,4415.4,0.375]
[1757594673429,1.72735,4416.8,4415.3,1.4669]
[1757594673931,1.5009,4416.4,4415.3,1.4669]
[1757594677325,1.5009,4416.4,4415.4,40.8]
[1757594677625,1.5009,4416.4,4415.6,1.4669]
[1757594678725,1.5009,4416.4,4415.0,0.5856]
[1757594678726,1.5009,4416.4,4415.0,1.4669]
[1757594679333,1.5009,4416.4,4415.1,40.8]
[1757594679833,0.601,4416.5,4415.1,40.8]
[1757594680728,1.5009,4416.4,4415.1,40.8]
[1757594680930,1.5009,4416.4,4415.2,1.4669]
[1757594682134,1.5009,4416.4,4415.2,1.8389]
[1757594682834,1.5009,4416.4,4415.3,1.4669]
[1757594683240,1.5009,4417.0,4415.6,1.4669]
[1757594683429,32.613,4417.4,4416.0,0.6072]
[1757594683629,1.5009,4417.3,4416.2,1.4669]
[1757594684533,1.5009,4417.3,4416.5,0.6054]
[1757594684724,1.5009,4417.3,4416.6,42.2669]
[1757594684929,1.5009,4417.3,4416.6,45.21959913]
[1757594685131,1.5009,4417.3,4416.7,0.371]
[1757594685932,1.5009,4417.3,4416.6,42.2669]
[1757594686139,1.5009,4417.4,4416.8,0.371]
[1757594686444,1.5009,4417.4,4416.7,0.37]
[1757594686752,0.601,4417.0,4416.7,0.37]
[1757594686927,0.601,4417.0,4416.6,41.17]
[1757594687125,1.5009,4416.9,4416.6,41.17]
[1757594687333,0.601,4417.0,4416.6,41.17]
[1757594687530,0.601,4417.5,4416.7,1.4669]
[1757594687937,1.5009,4417.4,4416.7,1.4669]
[1757594688233,1.5009,4417.4,4416.6,40.8]
[1757594688630,0.601,4417.5,4416.6,40.8]
[1757594688834,1.5009,4417.4,4416.6,40.8]
[1757594689040,1.5009,4417.4,4416.6,42.2669]
[1757594689229,1.5009,4417.4,4416.7,0.37]
[1757594689834,0.601,4417.5,4416.6,40.8]
[1757594690039,1.5009,4417.4,4416.7,0.369]
[1757594690442,1.5009,4417.4,4416.8,1.4669]
[1757594690936,1.5009,4417.4,4416.7,0.369]
[1757594691934,0.601,4417.0,4416.8,0.369]
[1757594692134,1.5009,4416.9,4416.8,0.369]
[1757594692839,0.601,4417.0,4415.7,3.50069784]
[1757594693030,0.601,4417.0,4415.6,2.03379784]
[1757594693237,1.8689,4416.9,4415.7,1.4669]
[1757594693939,1.5009,4416.9,4415.7,1.4669]
[1757594694138,1.5009,4416.7,4415.7,1.4669]
[1757594694739,1.5009,4416.7,4415.8,2.90046449]
[1757594694940,1.5009,4416.7,4415.9,0.368]
[1757594695838,1.5009,4416.9,4415.7,0.367]
[1757594696344,1.5009,4416.7,4415.7,0.367]
[1757594697045,1.5009,4416.9,4415.6,0.367]
[1757594697245,1.72734001,4416.9,4415.6,0.367]
[1757594697442,1.6125,4416.7,4415.6,0.367]
[1757594697641,1.6125,4416.7,4415.7,1.4805]
[1757594699746,1.6125,4416.7,4415.6,0.367]
[1757594699747,1.6125,4417.1,4415.9,1.4805]
[1757594699955,1.6125,4417.1,4416.0,0.6072]
[1757594700147,1.6125,4416.9,4416.1,1.4805]
[1757594700344,1.6125,4416.9,4416.0,0.366]
[1757594700545,1.6125,4416.9,4416.0,2.4537]
[1757594700741,1.6125,4417.4,4416.1,1.4805]
[1757594701444,1.83308085,4419.0,4416.2,0.22641]
[1757594701648,0.6342,4419.0,4417.5,0.40736]
[1757594701850,2.2467,4420.0,4418.1,1.4805]
[1757594702051,1.6125,4420.0,4418.6,1.4805]
[1757594702346,2.2467,4420.0,4418.7,0.365]
[1757594702546,2.2467,4420.0,4418.8,1.4805]
[1757594702950,2.2467,4420.0,4419.0,0.5836]
[1757594703145,1.6125,4420.0,4419.1,1.4805]
[1757594703450,2.2467,4420.0,4419.3,1.4805]
[1757594703649,1.6125,4419.9,4418.7,1.4805]
[1757594703849,1.6125,4419.9,4419.1,1.4805]
[1757594704446,1.6125,4419.9,4418.5,2.0641]
[1757594704647,1.6125,4419.9,4419.0,0.365]
[1757594704949,1.6125,4419.9,4418.5,2.0641]
[1757594704950,1.6125,4419.9,4418.9,0.364]
[1757594705153,1.6125,4419.9,4419.0,0.6087]
[1757594705352,1.6125,4419.9,4419.1,1.4805]
[1757594707357,0.6342,4421.0,4419.8,1.4805]
[1757594707552,1.6125,4420.9,4419.9,0.364]
[1757594707858,1.6125,4420.9,4420.0,1.4805]
[1757594708057,1.6125,4420.9,4420.1,40.8]
[1757594708460,1.6125,4420.9,4420.2,1.4805]
[1757594709365,1.6125,4420.9,4420.3,0.363]
[1757594710967,2.2467,4421.5,4420.6,1.4805]
[1757594711157,2.2467,4421.5,4420.7,0.362]
[1757594711469,2.2467,4421.5,4420.6,1.4805]
[1757594711661,2.2467,4421.5,4420.7,0.362]
[1757594712263,0.6342,4422.0,4420.8,1.4805]
[1757594712565,1.6125,4421.9,4420.8,1.4805]
[1757594713670,2.2467,4422.0,4421.4,40.8]
[1757594713870,2.2467,4422.5,4421.6,1.4805]
[1757594714065,2.2467,4422.5,4421.7,0.361]
[1757594714458,2.2467,4421.5,4421.4,40.8]
[1757594715363,1.6125,4421.5,4421.4,40.8]
[1757594716170,2.2467,4422.0,4421.4,40.8]
[1757594716372,1.6125,4421.9,4421.6,1.4805]
[1757594716671,1.6125,4422.4,4421.6,1.4805]
[1757594716975,1.6125,4422.9,4422.1,1.4805]
[1757594717162,1.6125,4422.9,4422.3,1.4805]
[1757594719074,1.6125,4422.9,4422.8,40.8]
[1757594722176,5.83860001,4422.9,4421.1,1.4805]
[1757594722373,1.6125,4422.7,4421.2,0.359]
[1757594722677,1.6125,4421.4,4421.3,40.8]
[1757594723467,1.6125,4421.4,4420.2,1.4805]
[1757594723468,5.6125,4421.4,4420.5,0.358]
[1757594723771,1.9705,4421.4,4420.5,0.358]
[1757594723965,1.9705,4421.4,4420.6,40.8]
[1757594724173,1.9705,4421.4,4420.6,42.2805]
[1757594724674,1.6125,4421.3,4420.6,40.8]
[1757594724880,1.6125,4420.9,4420.6,40.8]
[1757594725175,0.6342,4421.0,4420.6,40.8]
[1757594725479,0.2259,4420.9,4420.6,40.8]
[1757594725773,1.6125,4420.8,4420.6,42.2805]
[1757594726082,1.6125,4420.8,4420.6,40.8]
[1757594726482,0.2259,4420.9,4420.6,40.8]
[1757594726676,1.6125,4420.8,4420.6,40.8]
[1757594726880,1.6125,4420.8,4419.9,1.4805]
[1757594727479,1.557,4420.8,4420.0,40.8]
[1757594727684,1.557,4420.8,4419.4,1.5234]
[1757594728078,0.357,4420.7,4419.5,41.3959]
[1757594728378,1.557,4420.6,4419.6,1.5234]
[1757594728577,1.557,4420.4,4419.5,40.8]
[1757594728784,0.6293,4420.5,4419.5,40.8]
[1757594728979,1.557,4420.4,4419.5,40.8]
[1757594729383,0.6293,4420.5,4419.5,40.8]
[1757594729592,0.6293,4420.5,4419.5,42.3234]
[1757594729882,1.557,4420.4,4419.5,42.3234]
[1757594730081,0.6293,4420.5,4419.5,42.3234]
[1757594730485,1.557,4420.4,4419.5,42.3234]
[1757594730784,0.6293,4420.5,4419.5,42.3234]
[1757594731278,0.6293,4420.5,4419.5,40.8]
[1757594731585,0.6293,4420.5,4419.0,2.1195]
[1757594731778,0.58226,4420.4,4419.0,1.5234]
[1757594731983,0.58226,4420.4,4419.0,42.3234]
[1757594732184,1.557,4420.2,4419.0,42.9195]
[1757594732384,0.356,4420.4,4419.0,42.9195]
[1757594732582,1.557,4420.2,4419.0,42.9195]
[1757594732783,1.557,4420.2,4419.1,1.5234]
[1757594733281,0.355,4420.1,4419.1,1.5234]
[1757594733582,1.912,4420.2,4419.1,1.5234]
[1757594734172,1.912,4420.2,4419.1,1.8784]
[1757594734980,1.912,4420.2,4418.4,1.5234]
[1757594734981,1.557,4419.9,4418.4,1.5234]
[1757594735377,1.557,4419.9,4418.5,40.8]
[1757594735584,1.557,4419.7,4418.6,1.5234]
[1757594735777,0.355,4419.6,4418.6,1.5234]
[1757594735977,2.1863,4419.5,4418.6,1.5234]
[1757594736977,0.354,4419.7,4418.6,1.8774]
[1757594737275,2.1863,4420.0,4418.6,1.8774]
[1757594737482,1.557,4419.8,4418.6,1.8774]
[1757594738187,1.557,4419.8,4418.6,1.5234]
[1757594738488,0.354,4419.7,4418.6,1.5234]
[1757594738787,0.354,4419.8,4418.8,1.5234]
[1757594738995,32.586,4420.3,4418.9,1.5234]
[1757594739182,0.354,4420.1,4419.1,1.5234]
[1757594739485,0.354,4420.1,4419.1,1.8774]
[1757594739678,1.557,4419.9,4419.1,1.5234]
[1757594741686,0.22627001,4419.8,4418.6,1.5234]
[1757594741889,1.557,4419.9,4418.5,40.8]
[1757594742083,0.9823,4420.0,4418.5,40.8]
[1757594742084,1.557,4418.9,4418.5,40.8]
[1757594742389,0.6293,4419.0,4417.5,2.1131]
[1757594742585,1.557,4418.9,4417.8,0.353]
[1757594742888,1.557,4418.9,4417.9,40.8]